bitfinex-derivatives/quotes_SOLF0:USTF0_20260310
["timestamp","ask_amount","ask_price","bid_price","bid_amount"]
[1773111634981,4.77702238,86.54,86.48,4.77702238]
[1773111634982,16.28531243,86.529,86.484,15.84215146]
[1773111635185,16.28531243,86.539,86.49,20.61917384]
[1773111635392,4.77702238,86.55,86.491,15.84215146]
[1773111635587,4.77702238,86.55,86.438,28.10180591]
[1773111635588,16.28531243,86.553,86.501,15.84215146]
[1773111636087,4.77702238,86.55,86.501,15.84215146]
[1773111636289,16.28531243,86.549,86.501,15.84215146]
[1773111637285,16.28531243,86.549,86.504,15.84215146]
[1773111637493,31.55738895,86.595,86.511,15.84215146]
[1773111637494,4.77702238,86.56,86.511,15.84215146]
[1773111637788,16.28531243,86.564,86.511,15.84215146]
[1773111638191,16.28531243,86.549,86.491,15.84215146]
[1773111638386,16.28531243,86.539,86.491,15.84215146]
[1773111639392,16.28531243,86.539,86.492,10.404]
[1773111640193,16.28531243,86.553,86.51,4.77702238]
[1773111640394,16.28531243,86.553,86.511,15.84215146]
[1773111640789,16.28531243,86.567,86.52,4.77702238]
[1773111642793,16.28531243,86.567,86.516,15.84215146]
[1773111642994,16.28531243,86.567,86.53,4.77702238]
[1773111647297,16.00531799,86.584,86.54,4.77702238]
[1773111647498,16.00531799,86.584,86.531,16.09224615]
[1773111647997,10.395,86.574,86.531,16.09224615]
[1773111648501,16.00531799,86.581,86.531,16.09224615]
[1773111649397,16.00531799,86.581,86.54,4.77702238]
[1773111649598,16.00531799,86.581,86.54,4.7814377]
[1773111651093,16.00531799,86.581,86.542,10.398]
[1773111651400,20.774,86.64,86.551,16.09224615]
[1773111651401,16.00531799,86.595,86.551,16.09224615]
[1773111651895,16.00531799,86.595,86.56,4.7814377]
[1773111652199,16.00531799,86.595,86.551,16.09224615]
[1773111652399,16.00531799,86.595,86.552,10.397]
[1773111652991,16.00531799,86.595,86.56,4.7814377]
[1773111653193,16.00531799,86.595,86.55,4.7814377]
[1773111653392,16.00531799,86.593,86.54,4.7814377]
[1773111653598,16.00531799,86.589,86.54,4.7814377]
[1773111654392,26.39831799,86.589,86.54,4.7814377]
[1773111654797,16.00531799,86.588,86.54,4.7814377]
[1773111656907,16.00531799,86.588,86.55,4.7814377]
[1773111658407,16.00531799,86.601,86.56,4.7814377]
[1773111660101,16.00531799,86.599,86.552,10.397]
[1773111660300,16.00531799,86.599,86.56,4.7814377]
[1773111660905,16.00531799,86.599,86.553,16.09224615]
[1773111661114,16.00531799,86.599,86.55,4.7814377]
[1773111662416,16.00531799,86.597,86.547,10.398]
[1773111662605,16.00531799,86.597,86.55,4.7814377]
[1773111663306,10.392,86.595,86.55,4.7814377]
[1773111663507,15.07863956,86.594,86.55,4.7814377]
[1773111664413,15.07863956,86.594,86.551,15.71190379]
[1773111664610,15.07863956,86.619,86.56,4.7814377]
[1773111664810,15.07863956,86.619,86.56,20.49334149]
[1773111665413,25.46963956,86.604,86.56,30.88934149]
[1773111665614,15.07863956,86.599,86.54,4.7814377]
[1773111666210,15.07863956,86.599,86.55,4.7814377]
[1773111666411,15.07863956,86.599,86.56,4.7814377]
[1773111667812,71.89995793,86.767,86.508,34.67]
[1773111667813,15.07863956,86.667,86.561,15.71190379]
[1773111668110,15.07863956,86.667,86.62,4.7814377]
[1773111668314,15.07863956,86.667,86.61,15.1714377]
[1773111668510,10.77238895,86.704,86.559,34.67]
[1773111668511,4.7814377,86.65,86.585,15.71190379]
[1773111668710,4.7814377,86.62,86.57,4.7814377]
[1773111668912,15.07863956,86.629,86.58,4.7814377]
[1773111669312,15.07863956,86.629,86.581,15.71190379]
[1773111671013,15.07863956,86.629,86.59,4.7814377]
[1773111671404,10.385,86.653,86.6,4.7814377]
[1773111671405,15.07863956,86.649,86.6,4.7814377]
[1773111671809,10.77238895,86.701,86.611,15.71190379]
[1773111671810,15.07863956,86.664,86.611,15.71190379]
[1773111672016,15.07863956,86.664,86.63,4.7814377]
[1773111672314,15.07863956,86.664,86.611,15.71190379]
[1773111672315,15.07863956,86.664,86.62,4.7814377]
[1773111673506,15.07863956,86.664,86.612,10.39]
[1773111673805,15.07863956,86.664,86.613,15.71190379]
[1773111674117,15.07863956,86.664,86.601,15.71190379]
[1773111675511,15.07863956,86.661,86.605,10.391]
[1773111675717,15.07863956,86.661,86.605,26.10290379]
[1773111676815,15.07863956,86.661,86.607,26.10290379]
[1773111677813,15.07863956,86.661,86.608,15.71190379]
[1773111678120,15.07863956,86.675,86.608,15.71190379]
[1773111678416,15.07863956,86.685,86.621,15.71190379]
[1773111679415,15.07863956,86.685,86.632,10.388]
[1773111680022,15.07863956,86.683,86.623,15.71190379]
[1773111681318,10.382,86.679,86.626,10.388]
[1773111681519,15.07863956,86.678,86.626,10.388]
[1773111681726,15.07863956,86.678,86.626,26.09990379]
[1773111682419,15.07863956,86.678,86.63,26.09990379]
[1773111682819,15.07863956,86.678,86.62,12.78148996]
[1773111682820,15.07863956,86.678,86.634,15.71190379]
[1773111684027,10.381,86.689,86.634,15.71190379]
[1773111684226,15.07863956,86.693,86.641,15.71190379]
[1773111684926,10.381,86.691,86.644,10.386]
[1773111685123,15.07863956,86.69,86.601,15.71190379]
[1773111685922,12.78148996,86.7,86.618,15.71190379]
[1773111685923,15.07863956,86.677,86.618,15.71190379]
[1773111686416,15.07863956,86.677,86.583,34.67]
[1773111686417,15.07863956,86.677,86.621,15.71190379]
[1773111686619,15.07863956,86.699,86.621,15.71190379]
[1773111687528,15.07863956,86.699,86.633,15.71190379]
[1773111688122,15.07863956,86.699,86.649,10.386]
[1773111688326,15.07863956,86.699,86.65,15.71190379]
[1773111689128,15.07863956,86.719,86.65,15.71190379]
[1773111689326,15.07863956,86.719,86.582,177.0]
[1773111689327,15.07863956,86.739,86.668,15.71190379]
[1773111689838,15.07863956,86.739,86.684,15.71190379]
[1773111691333,15.07863956,86.738,86.684,15.71190379]
[1773111692533,15.07863956,86.738,86.685,10.381]
[1773111692534,10.375,86.735,86.685,10.381]
[1773111692736,15.07863956,86.734,86.685,10.381]
[1773111693231,15.07863956,86.734,86.685,26.09290379]
[1773111693935,12.78148996,86.77,86.64,12.78148996]
[1773111693936,13.32671732,86.743,86.692,14.68166082]
[1773111694335,23.70271732,86.731,86.678,10.382]
[1773111694631,13.32671732,86.73,86.677,14.68166082]
[1773111695034,10.376,86.729,86.68,25.06366082]
[1773111695435,13.32671732,86.728,86.68,14.68166082]
[1773111695738,13.32671732,86.728,86.69,4.7651698]
[1773111697041,13.32671732,86.728,86.68,14.68166082]
[1773111697042,13.32671732,86.728,86.68,4.7651698]
[1773111697239,13.32671732,86.728,86.69,4.7651698]
[1773111697440,13.32671732,86.728,86.673,10.383]
[1773111697441,13.32671732,86.728,86.68,4.7651698]
[1773111698337,13.32671732,86.717,86.67,4.7651698]
[1773111698836,13.32671732,86.717,86.665,14.68166082]
[1773111699238,10.378,86.716,86.67,4.7651698]
[1773111699439,20.744,86.765,86.627,34.67]
[1773111699440,18.09188712,86.73,86.68,4.7651698]
[1773111699640,13.32671732,86.729,86.68,4.7651698]
[1773111700039,4.7651698,86.74,86.69,4.7651698]
[1773111700341,13.32671732,86.743,86.69,4.7651698]
[1773111700840,13.32671732,86.743,86.691,14.68166082]
[1773111701043,13.32671732,86.743,86.7,4.7651698]
[1773111701347,4.7651698,86.73,86.663,14.68166082]
[1773111701643,18.09188712,86.73,86.68,19.44683062]
[1773111701948,18.09188712,86.73,86.69,4.7651698]
[1773111701949,13.32671732,86.73,86.69,4.7651698]
[1773111702340,13.32671732,86.719,86.67,4.7651698]
[1773111703238,4.7651698,86.71,86.664,14.68166082]
[1773111703439,10.378,86.71,86.664,14.68166082]
[1773111704351,13.32671732,86.709,86.664,14.68166082]
[1773111704846,13.32671732,86.709,86.641,14.68166082]
[1773111705746,13.32671732,86.696,86.643,10.386]
[1773111705938,13.32671732,86.696,86.621,14.68166082]
[1773111706242,13.32671732,86.692,86.635,14.68166082]
[1773111706645,13.32671732,86.688,86.601,14.68166082]
[1773111707351,13.32671732,86.686,86.625,14.68166082]
[1773111708449,13.32671732,86.686,86.631,10.388]
[1773111709543,13.32671732,86.682,86.625,14.68166082]
[1773111711445,13.32671732,86.682,86.627,13.15549064]
[1773111712446,13.32671732,86.682,86.631,23.54349064]
[1773111713043,13.32671732,86.682,86.631,13.15549064]
[1773111713550,13.32671732,86.682,86.632,13.15549064]
[1773111714959,13.32671732,86.682,86.635,10.387]
[1773111715255,13.32671732,86.682,86.636,13.15549064]
[1773111715650,13.32671732,86.682,86.625,10.389]
[1773111716050,10.382,86.68,86.622,13.15549064]
[1773111716256,13.48406634,86.679,86.622,13.15549064]
[1773111718456,13.48406634,86.669,86.622,13.15549064]
[1773111720253,13.48406634,86.689,86.622,13.15549064]
[1773111720756,13.48406634,86.689,86.62,12.78206818]
[1773111720757,13.48406634,86.689,86.634,13.15549064]
[1773111720954,13.48406634,86.679,86.621,13.15549064]
[1773111721153,13.48406634,86.679,86.623,10.389]
[1773111721656,23.86606634,86.677,86.624,13.15549064]
[1773111721847,13.48406634,86.677,86.624,13.15549064]
[1773111722251,13.48406634,86.694,86.624,13.15549064]
[1773111722756,13.48406634,86.694,86.653,10.385]
[1773111722961,13.48406634,86.711,86.647,13.15549064]
[1773111724055,12.35247668,86.709,86.651,10.385]
[1773111724260,12.35247668,86.709,86.62,12.78206818]
[1773111724261,12.35247668,86.709,86.633,12.68016254]
[1773111724455,20.749,86.744,86.618,12.68016254]
[1773111724456,12.35247668,86.689,86.618,12.68016254]
[1773111725157,12.35247668,86.672,86.618,12.68016254]
[1773111725656,10.383,86.671,86.618,12.68016254]
[1773111725862,12.35247668,86.67,86.618,12.68016254]
[1773111726756,12.35247668,86.67,86.637,10.387]
[1773111726959,14.18607543,86.736,86.597,13.81419009]
[1773111726960,12.35247668,86.729,86.641,12.68016254]
[1773111727153,12.35247668,86.729,86.661,12.68016254]
[1773111727354,12.35247668,86.728,86.674,10.383]
[1773111727561,12.35247668,86.728,86.68,4.76556529]
[1773111728362,10.376,86.727,86.68,4.76556529]
[1773111728564,12.35247668,86.726,86.68,4.76556529]
[1773111728863,10.377,86.725,86.68,4.76556529]
[1773111729063,0.57682767,86.761,86.674,23.06316254]
[1773111729064,12.35247668,86.724,86.674,10.383]
[1773111729264,12.35247668,86.724,86.68,4.76556529]
[1773111729658,10.377,86.723,86.664,12.68016254]
[1773111729963,12.35247668,86.722,86.664,12.68016254]
[1773111731060,12.35247668,86.709,86.653,10.385]
[1773111731364,12.35247668,86.709,86.653,23.06516254]
[1773111731563,12.35247668,86.709,86.654,12.68016254]
[1773111732368,12.35247668,86.709,86.661,10.384]
[1773111732560,12.35247668,86.709,86.654,12.68016254]
[1773111734360,10.379,86.707,86.654,12.68016254]
[1773111734566,12.35247668,86.706,86.654,12.68016254]
[1773111734968,12.35247668,86.705,86.66,10.384]
[1773111735173,12.35247668,86.705,86.654,12.68016254]
[1773111736363,12.35247668,86.701,86.654,12.68016254]
[1773111737460,12.35247668,86.695,86.654,12.68016254]
[1773111738762,12.35247668,86.695,86.643,10.386]
[1773111738969,12.35247668,86.691,86.641,12.68016254]
[1773111739561,12.35247668,86.687,86.641,12.68016254]
[1773111740173,12.35247668,86.687,86.642,23.06716254]
[1773111742369,10.382,86.684,86.642,12.68016254]
[1773111742574,12.35247668,86.683,86.642,12.68016254]
[1773111743173,10.382,86.682,86.634,10.387]
[1773111743372,12.35247668,86.681,86.629,12.68016254]
[1773111743768,12.35247668,86.673,86.615,12.68016254]
[1773111744070,12.35247668,86.673,86.625,23.06916254]
[1773111744271,12.35247668,86.687,86.626,12.68016254]
[1773111745380,12.35247668,86.687,86.648,10.386]
[1773111745974,10.381,86.692,86.648,10.386]
[1773111746183,10.38,86.7,86.651,12.68016254]
[1773111747385,10.38,86.7,86.655,12.68016254]
[1773111747683,12.35247668,86.701,86.655,12.68016254]
[1773111748383,12.35247668,86.701,86.656,10.385]
[1773111748682,12.35247668,86.701,86.657,12.68016254]
[1773111748878,10.379,86.708,86.657,12.68016254]
[1773111749579,12.35247668,86.705,86.66,10.384]
[1773111749779,12.35247668,86.705,86.657,12.68016254]
[1773111750186,12.35247668,86.705,86.658,10.385]
[1773111751577,12.35247668,86.705,86.66,4.76807666]
[1773111751871,12.35247668,86.699,86.65,4.76807666]
[1773111752386,12.35247668,86.699,86.65,12.68016254]
[1773111752683,12.35247668,86.689,86.64,15.15507666]
[1773111753474,10.382,86.679,86.64,4.76807666]
[1773111753679,12.35247668,86.689,86.64,4.76807666]
[1773111754686,12.35247668,86.689,86.638,12.68016254]
[1773111754889,4.76807666,86.69,86.638,12.68016254]
[1773111754890,11.53711664,86.679,86.638,12.68016254]
[1773111756494,10.382,86.678,86.638,12.68016254]
[1773111757391,11.53711664,86.659,86.612,11.35331963]
[1773111757582,11.53711664,86.659,86.599,11.35331963]
[1773111757796,11.53711664,86.639,86.6,4.76807666]
[1773111758600,11.53711664,86.639,86.59,4.76807666]
[1773111758990,10.387,86.638,86.59,4.76807666]
[1773111759301,11.53711664,86.637,86.58,4.76807666]
[1773111759805,11.53711664,86.637,86.572,11.35331963]
[1773111759996,11.53711664,86.634,86.572,11.35331963]
[1773111760196,11.53711664,86.634,86.556,11.35331963]
[1773111761410,11.53711664,86.613,86.556,11.35331963]
[1773111761900,11.53711664,86.588,86.527,11.35331963]
[1773111762302,11.53711664,86.588,86.505,20.72248225]
[1773111762303,11.53711664,86.588,86.511,11.35331963]
[1773111763106,11.53711664,86.587,86.515,11.35331963]
[1773111764404,12.79382948,86.6,86.515,11.35331963]
[1773111764405,11.53711664,86.585,86.515,11.35331963]
[1773111764605,11.53711664,86.585,86.521,11.35331963]
[1773111765305,11.53711664,86.585,86.527,11.35331963]
[1773111765505,11.53711664,86.585,86.52,12.79382948]
[1773111765506,11.53711664,86.614,86.541,11.35331963]
[1773111766311,11.53711664,86.614,86.549,11.35331963]
[1773111767003,10.39,86.613,86.55,10.398]
[1773111767204,11.53711664,86.614,86.551,11.35331963]
[1773111767504,11.53711664,86.614,86.52,12.79382948]
[1773111767505,11.53711664,86.614,86.561,11.35331963]
[1773111767702,11.53711664,86.624,86.567,11.35331963]
[1773111768509,10.389,86.619,86.567,11.35331963]
[1773111768703,12.79382948,86.65,86.567,11.35331963]
[1773111768704,11.53711664,86.618,86.567,11.35331963]
[1773111769301,10.39,86.615,86.553,11.35331963]
[1773111769614,11.53711664,86.614,86.553,11.35331963]
[1773111770008,11.53711664,86.602,86.539,11.35331963]
[1773111771507,11.53711664,86.599,86.526,11.35331963]
[1773111771711,11.53711664,86.589,86.526,11.35331963]
[1773111772503,11.53711664,86.574,86.51,11.35331963]
[1773111772712,11.53711664,86.574,86.477,184.54]
[1773111772713,11.94699631,86.569,86.491,11.54533503]
[1773111773608,11.94699631,86.554,86.491,11.54533503]
[1773111775615,12.80962516,86.57,86.491,11.54533503]
[1773111775616,11.94699631,86.55,86.491,11.54533503]
[1773111776001,11.94699631,86.589,86.491,11.54533503]
[1773111776707,11.94699631,86.574,86.513,10.402]
[1773111777211,11.94699631,86.574,86.518,11.54533503]
[1773111777702,10.395,86.573,86.518,11.54533503]
[1773111777905,11.94699631,86.572,86.52,10.401]
[1773111778309,22.33999631,86.587,86.521,11.54533503]
[1773111778510,11.94699631,86.586,86.521,11.54533503]
[1773111779214,22.33999631,86.585,86.526,11.54533503]
[1773111779618,11.94699631,86.584,86.526,11.54533503]
[1773111780415,12.80962516,86.61,86.531,11.54533503]
[1773111780416,10.392,86.595,86.531,11.54533503]
[1773111780618,11.94699631,86.598,86.531,11.54533503]
[1773111780914,11.94699631,86.598,86.53,12.80962516]
[1773111780915,10.391,86.606,86.553,21.94233503]
[1773111781122,10.391,86.606,86.554,11.54533503]
[1773111781614,11.94699631,86.603,86.53,12.80962516]
[1773111781820,11.94699631,86.603,86.526,11.54533503]
[1773111782621,11.94699631,86.603,86.541,11.54533503]
[1773111783626,10.78767926,86.586,86.53,12.80962516]
[1773111784322,10.394,86.584,86.528,21.19070929]
[1773111784521,10.78767926,86.583,86.528,21.19070929]
[1773111785020,10.78767926,86.583,86.533,10.4]
[1773111785321,10.78767926,86.583,86.534,10.79070929]
[1773111785722,10.78767926,86.583,86.517,10.79070929]
[1773111786319,10.394,86.578,86.528,10.79070929]
[1773111786626,10.78767926,86.609,86.531,10.79070929]
[1773111786820,10.78767926,86.609,86.53,12.80962516]
[1773111786821,10.78767926,86.609,86.546,10.79070929]
[1773111788525,21.17867926,86.607,86.549,10.79070929]
[1773111788825,10.78767926,86.606,86.549,10.79070929]
[1773111789023,10.391,86.604,86.552,10.397]
[1773111789220,10.78767926,86.606,86.553,10.79070929]
[1773111789924,10.78767926,86.597,86.538,10.79070929]
[1773111790520,10.78767926,86.597,86.531,10.79070929]
[1773111790722,10.78767926,86.588,86.528,10.4]
[1773111791027,10.78767926,86.588,86.528,21.19070929]
[1773111792328,10.394,86.579,86.528,21.19070929]
[1773111792624,10.394,86.579,86.51,12.80962516]
[1773111792625,10.78767926,86.588,86.531,10.79070929]
[1773111792821,10.78767926,86.587,86.531,10.79070929]
[1773111794326,10.395,86.576,86.531,10.79070929]
[1773111794526,10.78767926,86.575,86.521,10.401]
[1773111794827,10.78767926,86.575,86.514,10.79070929]
[1773111795220,10.78767926,86.567,86.514,10.79070929]
[1773111796229,10.78767926,86.549,86.468,10.79070929]
[1773111796530,10.78767926,86.549,86.361,162.101]
[1773111796531,10.78767926,86.549,86.481,10.79070929]
[1773111797427,10.78767926,86.539,86.482,10.79070929]
[1773111797626,10.78767926,86.539,86.467,10.79070929]
[1773111797821,10.78767926,86.519,86.441,10.79070929]
[1773111798928,10.403,86.501,86.441,10.79070929]
[1773111799130,10.78767926,86.516,86.441,10.79070929]
[1773111799633,10.78767926,86.516,86.452,10.79070929]
[1773111800334,21.18967926,86.516,86.453,10.409]
[1773111800632,21.18967926,86.516,86.454,10.79070929]
[1773111801729,21.18967926,86.516,86.458,10.79070929]
[1773111801934,10.78767926,86.516,86.458,10.79070929]
[1773111802134,10.401,86.526,86.458,10.79070929]
[1773111802433,10.78767926,86.532,86.47,10.79070929]
[1773111802831,10.78767926,86.547,86.482,10.79070929]
[1773111803330,12.80962516,86.58,86.491,10.79070929]
[1773111803331,10.78767926,86.579,86.491,10.79070929]
[1773111803632,10.78767926,86.57,86.502,10.79070929]
[1773111804730,10.78767926,86.57,86.514,10.79070929]
[1773111804927,12.80962516,86.6,86.514,10.79070929]
[1773111805136,10.78767926,86.599,86.514,10.79070929]
[1773111806334,10.394,86.579,86.525,10.401]
[1773111806629,10.78767926,86.578,86.526,10.79070929]
[1773111806831,10.78767926,86.619,86.526,10.79070929]
[1773111807136,10.78767926,86.591,86.532,10.79070929]
[1773111808334,10.393,86.59,86.532,10.79070929]
[1773111808831,10.396,86.568,86.515,10.79070929]
[1773111809136,10.78767926,86.583,86.515,10.79070929]
[1773111809936,10.78767926,86.583,86.519,10.79070929]
[1773111811032,10.78767926,86.583,86.51,12.80962516]
[1773111811033,10.78767926,86.583,86.524,10.79070929]
[1773111811931,10.395,86.574,86.524,10.79070929]
[1773111812139,10.78767926,86.583,86.524,10.79070929]
[1773111813440,21.18167926,86.583,86.527,10.66984051]
[1773111813827,10.73009467,86.582,86.527,10.66984051]
[1773111814028,20.774,86.639,86.511,10.66984051]
[1773111814029,10.73009467,86.561,86.511,10.66984051]
[1773111814231,10.73009467,86.561,86.495,10.66984051]
[1773111814633,12.80962516,86.58,86.498,10.66984051]
[1773111814634,10.73009467,86.558,86.498,10.66984051]
[1773111814839,10.73009467,86.558,86.501,10.66984051]
[1773111815028,10.73009467,86.558,86.509,10.402]
[1773111815639,10.73009467,86.549,86.484,10.66984051]
[1773111816628,12.80962516,86.58,86.45,12.80962516]
[1773111816629,10.73009467,86.539,86.451,10.66984051]
[1773111817232,10.73009467,86.539,86.468,10.66984051]
[1773111817629,10.73009467,86.539,86.449,10.66984051]
[1773111817834,10.73009467,86.539,86.46,10.66984051]
[1773111819439,10.401,86.524,86.464,10.66984051]
[1773111820130,12.80962516,86.54,86.464,10.66984051]
[1773111820131,10.73009467,86.534,86.464,10.66984051]
[1773111820537,10.73009467,86.529,86.447,10.66984051]
[1773111820737,10.73009467,86.529,86.451,10.66984051]
[1773111821743,12.80962516,86.55,86.45,12.80962516]
[1773111821744,10.73009467,86.544,86.483,10.66984051]
[1773111822833,10.73009467,86.527,86.467,10.66984051]
[1773111823435,10.73009467,86.513,86.451,10.409]
[1773111823642,10.73009467,86.513,86.45,10.66984051]
[1773111824235,10.403,86.502,86.45,10.66984051]
[1773111824443,10.73009467,86.513,86.45,10.66984051]
[1773111824837,12.80962516,86.53,86.45,10.66984051]
[1773111824838,10.73009467,86.511,86.45,10.66984051]
[1773111825037,20.791,86.57,86.42,12.80962516]
[1773111825038,10.73009467,86.509,86.421,10.66984051]
[1773111825743,10.73009467,86.509,86.44,10.66984051]
[1773111826540,10.73009467,86.494,86.44,10.66984051]
[1773111827136,10.405,86.489,86.44,10.66984051]
[1773111827340,10.73009467,86.494,86.442,10.66984051]
[1773111827536,10.73009467,86.509,86.442,10.66984051]
[1773111827737,10.73009467,86.509,86.42,12.80962516]
[1773111827738,10.73009467,86.509,86.454,10.66984051]
[1773111828340,10.73009467,86.494,86.43,10.66984051]
[1773111828539,10.73009467,86.489,86.414,10.66984051]
[1773111829143,12.80962516,86.49,86.414,10.66984051]
[1773111829144,10.73009467,86.469,86.414,10.66984051]
[1773111829642,10.73009467,86.464,86.414,10.66984051]
[1773111830649,10.73009467,86.464,86.392,10.66984051]
[1773111832242,10.73009467,86.453,86.397,10.66984051]
[1773111832946,9.98247632,86.469,86.397,10.66984051]
[1773111834048,10.408,86.467,86.408,10.76318271]
[1773111834454,9.98247632,86.466,86.408,10.76318271]
[1773111835050,9.98247632,86.494,86.419,10.76318271]
[1773111835360,9.98247632,86.494,86.421,10.76318271]
[1773111836158,9.98247632,86.489,86.427,10.76318271]
[1773111837561,9.98247632,86.489,86.44,10.411]
[1773111838154,9.98247632,86.489,86.427,10.76318271]
[1773111838155,10.404,86.498,86.449,10.76318271]
[1773111838351,10.404,86.498,86.388,48.65651709]
[1773111838352,9.98247632,86.505,86.433,10.76318271]
[1773111838757,9.98247632,86.505,86.446,10.41]
[1773111838955,9.98247632,86.505,86.447,10.76318271]
[1773111839857,9.98247632,86.503,86.421,10.76318271]
[1773111840157,10.404,86.499,86.449,10.41]
[1773111840662,9.98247632,86.498,86.429,10.76318271]
[1773111841165,9.98247632,86.485,86.43,10.412]
[1773111841759,9.98247632,86.485,86.439,10.411]
[1773111843561,9.98247632,86.485,86.439,20.77161522]
[1773111843867,10.404,86.5,86.447,10.36061522]
[1773111844863,10.54737444,86.529,86.458,10.36061522]
[1773111846371,10.402,86.511,86.458,10.36061522]
[1773111847566,10.54737444,86.505,86.458,10.36061522]
[1773111847771,10.54737444,86.505,86.444,20.77061522]
[1773111847962,10.54737444,86.505,86.445,10.36061522]
[1773111849265,10.406,86.483,86.425,10.36061522]
[1773111849465,12.84710383,86.51,86.425,10.36061522]
[1773111849466,10.54737444,86.482,86.425,10.36061522]
[1773111849965,10.406,86.477,86.425,20.77361522]
[1773111850560,10.54737444,86.476,86.401,10.36061522]
[1773111850866,10.407,86.469,86.422,10.413]
[1773111851264,10.54737444,86.476,86.422,10.413]
[1773111851666,10.407,86.475,86.422,10.413]
[1773111851861,10.54737444,86.474,86.422,10.413]
[1773111852565,10.407,86.471,86.419,10.36061522]
[1773111852870,10.54737444,86.474,86.419,10.36061522]
[1773111853767,12.84710383,86.49,86.42,10.413]
[1773111853768,10.54737444,86.472,86.42,10.413]
[1773111854470,10.54737444,86.465,86.404,10.36061522]
[1773111854775,10.54737444,86.465,86.381,10.36061522]
[1773111854974,10.54737444,86.465,86.41,10.36061522]
[1773111856071,10.54737444,86.462,86.394,10.36061522]
[1773111856273,10.54737444,86.459,86.394,10.36061522]
[1773111856577,10.54737444,86.444,86.394,10.36061522]
[1773111859575,10.41,86.443,86.394,10.36061522]
[1773111859876,10.54737444,86.442,86.394,10.36061522]
[1773111860069,10.54737444,86.439,86.394,10.36061522]
[1773111860476,10.54737444,86.469,86.394,10.36061522]
[1773111860673,10.54737444,86.469,86.375,10.36061522]
[1773111860974,10.54737444,86.449,86.383,10.418]
[1773111861679,10.54737444,86.449,86.384,10.36061522]
[1773111862077,10.54737444,86.449,86.364,2.01357427]
[1773111862078,10.54737444,86.432,86.372,10.419]
[1773111862280,10.54737444,86.432,86.365,10.36061522]
[1773111863482,10.412,86.431,86.369,10.36061522]
[1773111863781,10.54737444,86.432,86.369,10.36061522]
[1773111863982,10.54737444,86.432,86.372,10.36061522]
[1773111864282,10.54737444,86.469,86.372,10.36061522]
[1773111865483,10.54737444,86.453,86.384,10.36061522]
[1773111865979,10.41,86.45,86.387,10.417]
[1773111866178,10.41,86.45,86.388,10.36061522]
[1773111866680,20.95737444,86.45,86.388,10.36061522]
[1773111867081,10.54737444,86.449,86.388,10.36061522]
[1773111867283,10.54737444,86.449,86.391,10.36061522]
[1773111868287,14.1646091,86.509,86.391,10.36061522]
[1773111868288,10.54737444,86.469,86.391,10.36061522]
[1773111868587,10.54737444,86.489,86.411,10.36061522]
[1773111868790,10.54737444,86.486,86.428,10.36061522]
[1773111869381,10.54737444,86.486,86.432,10.36061522]
[1773111870390,10.54737444,86.486,86.411,10.36061522]
[1773111870995,10.54737444,86.474,86.42,10.36061522]
[1773111872493,10.54737444,86.474,86.422,10.36061522]
[1773111873484,10.54737444,86.474,86.427,9.30040239]
[1773111873689,9.60838195,86.493,86.427,9.30040239]
[1773111874489,9.60838195,86.482,86.428,10.412]
[1773111874784,9.60838195,86.482,86.429,9.30040239]
[1773111875491,9.60838195,86.482,86.42,12.84710383]
[1773111875492,9.60838195,86.482,86.434,9.30040239]
[1773111876596,9.60838195,86.482,86.437,9.30040239]
[1773111877096,10.406,86.478,86.437,9.30040239]
[1773111877288,9.60838195,86.482,86.437,9.30040239]
[1773111878890,9.60838195,86.475,86.421,9.30040239]
[1773111880393,9.60838195,86.475,86.424,9.30040239]
[1773111881190,9.60838195,86.475,86.383,34.71]
[1773111881191,9.60838195,86.473,86.396,9.30040239]
[1773111881394,9.60838195,86.469,86.396,9.30040239]
[1773111881693,9.60838195,86.469,86.401,9.30040239]
[1773111882093,9.60838195,86.46,86.411,10.414]
[1773111882392,9.60838195,86.499,86.401,9.30040239]
[1773111882591,10.407,86.474,86.42,9.30040239]
[1773111882787,20.01538195,86.474,86.42,9.30040239]
[1773111883192,9.60838195,86.474,86.422,9.30040239]
[1773111884499,9.60838195,86.474,86.43,10.412]
[1773111886499,9.60838195,86.474,86.404,9.30040239]
[1773111887493,9.60838195,86.462,86.404,19.71540239]
[1773111888298,9.60838195,86.453,86.396,10.416]
[1773111888493,9.60838195,86.453,86.39,9.30040239]
[1773111889302,9.60838195,86.453,86.375,9.30040239]
[1773111889504,9.68351159,86.442,86.388,10.417]
[1773111890208,12.84710383,86.46,86.363,20.91977563]
[1773111890209,9.68351159,86.429,86.363,20.91977563]
[1773111890400,12.84710383,86.46,86.343,9.47137116]
[1773111890401,9.68351159,86.419,86.343,9.47137116]
[1773111890702,9.68351159,86.419,86.325,9.47137116]